[Event "Early-Titled-Tuesday-Blitz-February-20-2024"]
[Site "Chess.com"]
[Date "2024.02.20"]
[Round "7"]
[White "carokannlover213"]
[Black "Rud_Makarian"]
[Result "0-1"]
[WhiteElo "2848"]
[BlackElo "3079"]
[TimeControl "180+1"]
[EndTime "9:18:54 PST"]
[Termination "Rud_Makarian won on time"]

1. e4 {[%clk 0:03:00.9]} 1... c5 {[%clk 0:02:55.2]} 2. Nf3 {[%clk 0:03:00.8]}
2... d6 {[%clk 0:02:55.5]} 3. Bb5+ {[%clk 0:02:57]} 3... Nd7 {[%clk 0:02:55.3]}
4. O-O {[%clk 0:02:56.9]} 4... Nf6 {[%clk 0:02:55.6]} 5. Re1 {[%clk 0:02:57]}
5... a6 {[%clk 0:02:56]} 6. Bf1 {[%clk 0:02:57.6]} 6... b5 {[%clk 0:02:56]} 7.
a4 {[%clk 0:02:54.3]} 7... b4 {[%clk 0:02:54.6]} 8. d4 {[%clk 0:02:54]} 8...
cxd4 {[%clk 0:02:51.7]} 9. Nxd4 {[%clk 0:02:54.9]} 9... Bb7 {[%clk 0:02:51.6]}
10. Bd3 {[%clk 0:02:49.5]} 10... e6 {[%clk 0:02:51]} 11. Bg5 {[%clk 0:02:48.9]}
11... Be7 {[%clk 0:02:51.2]} 12. Nd2 {[%clk 0:02:48.5]} 12... O-O {[%clk
0:02:51.1]} 13. N4f3 {[%clk 0:02:26.7]} 13... Nc5 {[%clk 0:02:47.7]} 14. Qe2
{[%clk 0:02:08.8]} 14... Rc8 {[%clk 0:02:42.8]} 15. e5 {[%clk 0:01:53.2]} 15...
dxe5 {[%clk 0:02:37.7]} 16. Nxe5 {[%clk 0:01:54.1]} 16... Nxd3 {[%clk
0:02:37.8]} 17. Qxd3 {[%clk 0:01:33.2]} 17... Qxd3 {[%clk 0:02:36.3]} 18. cxd3
{[%clk 0:01:33.1]} 18... h6 {[%clk 0:02:24.1]} 19. Bxf6 {[%clk 0:01:27.3]} 19...
Bxf6 {[%clk 0:02:25]} 20. Ndc4 {[%clk 0:01:15.7]} 20... Rfd8 {[%clk 0:02:23.2]}
21. Rad1 {[%clk 0:01:15.5]} 21... Rc5 {[%clk 0:02:17.7]} 22. b3 {[%clk
0:01:10.1]} 22... h5 {[%clk 0:02:16.9]} 23. Kf1 {[%clk 0:00:49.1]} 23... g5
{[%clk 0:02:16.7]} 24. h3 {[%clk 0:00:48.2]} 24... Kg7 {[%clk 0:02:16.8]} 25.
Nf3 {[%clk 0:00:47.5]} 25... Rcd5 {[%clk 0:01:55.9]} 26. Ke2 {[%clk 0:00:40.3]}
26... g4 {[%clk 0:01:50]} 27. hxg4 {[%clk 0:00:39.5]} 27... hxg4 {[%clk
0:01:50.9]} 28. Nh2 {[%clk 0:00:35.9]} 28... Rg5 {[%clk 0:01:51.3]} 29. Ne3
{[%clk 0:00:32.8]} 29... Bc3 {[%clk 0:01:27]} 30. Rf1 {[%clk 0:00:22.2]} 30...
f5 {[%clk 0:01:26.4]} 31. Rg1 {[%clk 0:00:15.2]} 31... Rh8 {[%clk 0:01:22.8]}
32. Nhf1 {[%clk 0:00:02.1]} 32... f4 {[%clk 0:01:23.2]} 33. Nc4 {[%clk
0:00:02.6]} 33... f3+ {[%clk 0:01:16]} 34. Ke3 {[%clk 0:00:02]} 34... fxg2
{[%clk 0:01:15.4]} 35. Ng3 {[%clk 0:00:01.8]} 35... Bf3 {[%clk 0:01:11.6]} 36.
Rc1 {[%clk 0:00:01.4]} 36... Rd8 {[%clk 0:01:06.2]} 0-1

[Event "Early-Titled-Tuesday-Blitz-February-20-2024"]
[Site "Chess.com"]
[Date "2024.02.20"]
[Round "7"]
[White "Ariadna_Atreides"]
[Black "komogro"]
[Result "0-1"]
[WhiteElo "2190"]
[BlackElo "2529"]
[TimeControl "180+1"]
[EndTime "9:18:54 PST"]
[Termination "komogro won by resignation"]

1. d4 {[%clk 0:03:00.9]} 1... Nf6 {[%clk 0:02:59.5]} 2. Nf3 {[%clk 0:03:01.4]}
2... g6 {[%clk 0:02:58.5]} 3. c4 {[%clk 0:03:01.1]} 3... Bg7 {[%clk 0:02:58.2]}
4. Nc3 {[%clk 0:03:01.7]} 4... O-O {[%clk 0:02:57.5]} 5. e4 {[%clk 0:03:02.2]}
5... d6 {[%clk 0:02:58.1]} 6. h3 {[%clk 0:03:00.4]} 6... Na6 {[%clk 0:02:56]} 7.
Bg5 {[%clk 0:02:59]} 7... c5 {[%clk 0:02:53.4]} 8. d5 {[%clk 0:02:58]} 8... Nc7
{[%clk 0:02:52.4]} 9. Bd3 {[%clk 0:02:55.8]} 9... e6 {[%clk 0:02:52.5]} 10. Qd2
{[%clk 0:02:49.9]} 10... exd5 {[%clk 0:02:51.7]} 11. cxd5 {[%clk 0:02:38.7]}
11... b5 {[%clk 0:02:47.1]} 12. O-O {[%clk 0:02:21.3]} 12... c4 {[%clk
0:02:45.1]} 13. Bc2 {[%clk 0:02:19.9]} 13... b4 {[%clk 0:02:21.5]} 14. Ne2
{[%clk 0:02:16]} 14... a5 {[%clk 0:02:19.8]} 15. Ned4 {[%clk 0:02:14.7]} 15...
Bd7 {[%clk 0:02:16.2]} 16. Rfe1 {[%clk 0:02:08.8]} 16... Nb5 {[%clk 0:02:09]}
17. Nxb5 {[%clk 0:02:07.4]} 17... Bxb5 {[%clk 0:02:09.9]} 18. Nd4 {[%clk
0:02:06.6]} 18... Qb6 {[%clk 0:02:09.8]} 19. Nxb5 {[%clk 0:01:57]} 19... Qxb5
{[%clk 0:02:09.7]} 20. Qf4 {[%clk 0:01:55.7]} 20... Nh5 {[%clk 0:01:47.6]} 21.
Qxd6 {[%clk 0:01:53.6]} 21... Bxb2 {[%clk 0:01:46.8]} 22. Rab1 {[%clk
0:01:53.1]} 22... Bc3 {[%clk 0:01:46.7]} 23. Red1 {[%clk 0:01:51]} 23... Rfe8
{[%clk 0:01:37.9]} 24. g4 {[%clk 0:00:49.4]} 24... Be5 {[%clk 0:01:35.7]} 25.
Qc6 {[%clk 0:00:46]} 25... Qxc6 {[%clk 0:01:35.8]} 26. dxc6 {[%clk 0:00:46.9]}
26... Nf4 {[%clk 0:01:36.1]} 27. Bxf4 {[%clk 0:00:38.8]} 27... Bxf4 {[%clk
0:01:37]} 28. Rd5 {[%clk 0:00:29.7]} 28... Rec8 {[%clk 0:01:29.8]} 29. Ba4
{[%clk 0:00:28.8]} 29... Rc7 {[%clk 0:01:18.1]} 30. Rc5 {[%clk 0:00:23.9]} 30...
c3 {[%clk 0:01:15.8]} 31. a3 {[%clk 0:00:20.3]} 31... bxa3 {[%clk 0:01:05.5]}
32. Bb3 {[%clk 0:00:11.2]} 32... Kf8 {[%clk 0:01:00.3]} 33. Rxc3 {[%clk
0:00:09.6]} 33... Rb8 {[%clk 0:00:57]} 34. Rbc1 {[%clk 0:00:06.8]} 34... Bxc1
{[%clk 0:00:53.3]} 0-1

[Event "Early-Titled-Tuesday-Blitz-February-20-2024"]
[Site "Chess.com"]
[Date "2024.02.20"]
[Round "7"]
[White "Manukyan_Artak"]
[Black "wild3000"]
[Result "1-0"]
[WhiteElo "2555"]
[BlackElo "2421"]
[TimeControl "180+1"]
[EndTime "9:18:55 PST"]
[Termination "Manukyan_Artak won by resignation"]

1. e4 {[%clk 0:03:00.9]} 1... e6 {[%clk 0:02:56.2]} 2. d4 {[%clk 0:03:00.4]}
2... d5 {[%clk 0:02:55.5]} 3. e5 {[%clk 0:03:01.3]} 3... c5 {[%clk 0:02:55.2]}
4. c3 {[%clk 0:03:02.2]} 4... Nc6 {[%clk 0:02:54.7]} 5. Nf3 {[%clk 0:03:02.3]}
5... Nge7 {[%clk 0:02:55.6]} 6. a3 {[%clk 0:03:01.9]} 6... a5 {[%clk 0:02:53.6]}
7. Bd3 {[%clk 0:03:00.5]} 7... Nf5 {[%clk 0:02:53.5]} 8. O-O {[%clk 0:02:59.7]}
8... Be7 {[%clk 0:02:53.5]} 9. Re1 {[%clk 0:02:56.1]} 9... O-O {[%clk
0:02:53.1]} 10. Nbd2 {[%clk 0:02:38.6]} 10... a4 {[%clk 0:02:46.8]} 11. Nf1
{[%clk 0:02:36]} 11... b6 {[%clk 0:02:43.4]} 12. Ne3 {[%clk 0:02:27.9]} 12...
cxd4 {[%clk 0:02:38.3]} 13. Nxf5 {[%clk 0:02:26.6]} 13... exf5 {[%clk
0:02:38.2]} 14. Nxd4 {[%clk 0:02:23.8]} 14... Nxd4 {[%clk 0:02:35.2]} 15. cxd4
{[%clk 0:02:24.7]} 15... Be6 {[%clk 0:02:31.5]} 16. Bd2 {[%clk 0:02:19.6]} 16...
Qd7 {[%clk 0:02:17.9]} 17. Rc1 {[%clk 0:02:17.4]} 17... Rfc8 {[%clk 0:02:15.5]}
18. Qe2 {[%clk 0:02:16.7]} 18... Rxc1 {[%clk 0:02:13.3]} 19. Rxc1 {[%clk
0:02:16.5]} 19... Rc8 {[%clk 0:02:07.8]} 20. Qd1 {[%clk 0:02:13.9]} 20... Rxc1
{[%clk 0:02:03.8]} 21. Qxc1 {[%clk 0:02:13.3]} 21... h6 {[%clk 0:02:02.1]} 22.
f4 {[%clk 0:02:11]} 22... b5 {[%clk 0:01:24.8]} 23. Bb4 {[%clk 0:02:03.3]} 23...
Qa7 {[%clk 0:01:16.1]} 24. Qc3 {[%clk 0:01:51.7]} 24... g5 {[%clk 0:01:08.6]}
25. Bxb5 {[%clk 0:01:46.4]} 25... gxf4 {[%clk 0:01:06.5]} 26. Bxe7 {[%clk
0:01:42.1]} 26... Qxe7 {[%clk 0:01:06.1]} 27. Bxa4 {[%clk 0:01:43]} 27... Qg5
{[%clk 0:00:51.6]} 28. Bd1 {[%clk 0:01:39.6]} 28... f3 {[%clk 0:00:36.7]} 29.
Bxf3 {[%clk 0:01:36.3]} 29... Qf4 {[%clk 0:00:29]} 30. a4 {[%clk 0:01:33.4]}
30... Bd7 {[%clk 0:00:24.6]} 31. b3 {[%clk 0:01:31.9]} 31... Kg7 {[%clk
0:00:23.2]} 32. Bxd5 {[%clk 0:01:27.9]} 32... h5 {[%clk 0:00:19.8]} 33. Qg3+
{[%clk 0:01:24.3]} 33... Qxg3 {[%clk 0:00:19.9]} 34. hxg3 {[%clk 0:01:25.2]}
34... f6 {[%clk 0:00:20]} 35. a5 {[%clk 0:01:22.4]} 35... fxe5 {[%clk
0:00:17.7]} 36. dxe5 {[%clk 0:01:21.6]} 36... Bb5 {[%clk 0:00:17.7]} 37. Kf2
{[%clk 0:01:17.5]} 37... Kg6 {[%clk 0:00:17.8]} 38. Ke3 {[%clk 0:01:17.1]} 38...
Kg5 {[%clk 0:00:18]} 39. Bf3 {[%clk 0:01:09.1]} 39... Ba6 {[%clk 0:00:15.7]} 40.
b4 {[%clk 0:01:07.4]} 40... Bb5 {[%clk 0:00:15.5]} 41. Kd4 {[%clk 0:01:06.2]}
41... f4 {[%clk 0:00:15.3]} 42. gxf4+ {[%clk 0:01:05.8]} 42... Kxf4 {[%clk
0:00:16.2]} 43. Bxh5 {[%clk 0:01:06.1]} 1-0

[Event "Early-Titled-Tuesday-Blitz-February-20-2024"]
[Site "Chess.com"]
[Date "2024.02.20"]
[Round "7"]
[White "KorolDimitriy75"]
[Black "Hope_6"]
[Result "1-0"]
[WhiteElo "2442"]
[BlackElo "2748"]
[TimeControl "180+1"]
[EndTime "9:19:01 PST"]
[Termination "KorolDimitriy75 won by checkmate"]

1. d4 {[%clk 0:03:00.9]} 1... d5 {[%clk 0:02:59.3]} 2. c4 {[%clk 0:03:01.4]}
2... e6 {[%clk 0:02:59.1]} 3. Nc3 {[%clk 0:03:01.9]} 3... Nf6 {[%clk 0:02:59.2]}
4. Bg5 {[%clk 0:03:02]} 4... Be7 {[%clk 0:02:58.4]} 5. cxd5 {[%clk 0:03:02.3]}
5... exd5 {[%clk 0:02:59.3]} 6. e3 {[%clk 0:03:02.6]} 6... c6 {[%clk 0:02:57.9]}
7. Bd3 {[%clk 0:03:02.8]} 7... h6 {[%clk 0:02:57.5]} 8. Bh4 {[%clk 0:03:02.6]}
8... O-O {[%clk 0:02:56.1]} 9. Qc2 {[%clk 0:03:02.8]} 9... Nbd7 {[%clk
0:02:55.6]} 10. Nge2 {[%clk 0:03:02.9]} 10... Re8 {[%clk 0:02:55.9]} 11. f3
{[%clk 0:03:03.2]} 11... Bf8 {[%clk 0:02:42.2]} 12. Bf2 {[%clk 0:03:01.4]} 12...
Qc7 {[%clk 0:02:38.6]} 13. O-O {[%clk 0:02:57]} 13... Bd6 {[%clk 0:02:34.8]} 14.
h3 {[%clk 0:02:55.8]} 14... Nf8 {[%clk 0:02:29.7]} 15. e4 {[%clk 0:02:50.3]}
15... dxe4 {[%clk 0:02:26.5]} 16. fxe4 {[%clk 0:02:51.2]} 16... Bh2+ {[%clk
0:02:02.6]} 17. Kh1 {[%clk 0:02:50.8]} 17... Nh5 {[%clk 0:01:54.3]} 18. e5
{[%clk 0:02:45.5]} 18... Bf4 {[%clk 0:01:48.9]} 19. Nd5 {[%clk 0:02:33.8]} 19...
Qd8 {[%clk 0:01:30.5]} 20. Ndxf4 {[%clk 0:02:33.8]} 20... Nxf4 {[%clk
0:01:28.2]} 21. Nxf4 {[%clk 0:02:34.7]} 21... Qg5 {[%clk 0:01:26.8]} 22. Be3
{[%clk 0:02:33.8]} 22... Qe7 {[%clk 0:01:23.1]} 23. Bc4 {[%clk 0:02:28]} 23...
b5 {[%clk 0:01:15]} 24. Bb3 {[%clk 0:02:24.8]} 24... Bb7 {[%clk 0:01:14.3]} 25.
Ng6 {[%clk 0:02:04.1]} 25... Qd7 {[%clk 0:00:51.1]} 26. Rxf7 {[%clk 0:01:46.3]}
26... Qxf7 {[%clk 0:00:43.6]} 27. Bxf7+ {[%clk 0:01:32.9]} 27... Kxf7 {[%clk
0:00:44.5]} 28. Rf1+ {[%clk 0:01:28.9]} 28... Kg8 {[%clk 0:00:43.4]} 29. Nxf8
{[%clk 0:01:10.6]} 29... Rxf8 {[%clk 0:00:42.5]} 30. Rxf8+ {[%clk 0:00:58.2]}
30... Rxf8 {[%clk 0:00:43.4]} 31. Qc5 {[%clk 0:00:57.9]} 31... Rf1+ {[%clk
0:00:39.6]} 32. Kh2 {[%clk 0:00:57.7]} 32... Rb1 {[%clk 0:00:40.3]} 33. e6
{[%clk 0:00:52.5]} 33... Re1 {[%clk 0:00:37.4]} 34. Qe5 {[%clk 0:00:42.8]} 34...
Kf8 {[%clk 0:00:35.5]} 35. Qb8+ {[%clk 0:00:41]} 35... Ke7 {[%clk 0:00:35.3]}
36. Qxb7+ {[%clk 0:00:41.2]} 36... Kxe6 {[%clk 0:00:36.2]} 37. Qxc6+ {[%clk
0:00:40.6]} 37... Kf5 {[%clk 0:00:36.1]} 38. Qd5+ {[%clk 0:00:38.6]} 38... Kg6
{[%clk 0:00:36]} 39. Qe4+ {[%clk 0:00:37.9]} 39... Kf6 {[%clk 0:00:36.2]} 40.
Bg5+ {[%clk 0:00:37.9]} 40... Kxg5 {[%clk 0:00:35.8]} 41. Qxe1 {[%clk
0:00:38.8]} 41... Kh5 {[%clk 0:00:36]} 42. d5 {[%clk 0:00:38.6]} 42... g5 {[%clk
0:00:36.9]} 43. Qe8+ {[%clk 0:00:36.4]} 43... Kh4 {[%clk 0:00:36.3]} 44. g3#
{[%clk 0:00:36.4]} 1-0

[Event "Early-Titled-Tuesday-Blitz-February-20-2024"]
[Site "Chess.com"]
[Date "2024.02.20"]
[Round "7"]
[White "ozates"]
[Black "HeroWilczek"]
[Result "1-0"]
[WhiteElo "2583"]
[BlackElo "2468"]
[TimeControl "180+1"]
[EndTime "9:19:03 PST"]
[Termination "ozates won by resignation"]

1. e4 {[%clk 0:03:00.9]} 1... e6 {[%clk 0:02:59.6]} 2. d4 {[%clk 0:03:00.3]}
2... d5 {[%clk 0:02:59]} 3. e5 {[%clk 0:03:00.2]} 3... c5 {[%clk 0:02:58.8]} 4.
c3 {[%clk 0:03:00.9]} 4... Nc6 {[%clk 0:02:58.9]} 5. Nf3 {[%clk 0:03:01.8]} 5...
Qb6 {[%clk 0:02:59.1]} 6. a3 {[%clk 0:03:02.3]} 6... Bd7 {[%clk 0:02:53.8]} 7.
b4 {[%clk 0:03:01.9]} 7... cxd4 {[%clk 0:02:53.8]} 8. cxd4 {[%clk 0:03:02.8]}
8... Nge7 {[%clk 0:02:51.8]} 9. Be3 {[%clk 0:02:55.6]} 9... Nf5 {[%clk
0:02:51.4]} 10. Be2 {[%clk 0:02:52.5]} 10... Be7 {[%clk 0:02:50.8]} 11. O-O
{[%clk 0:02:52.3]} 11... O-O {[%clk 0:02:51.4]} 12. Nbd2 {[%clk 0:02:52.9]}
12... f6 {[%clk 0:02:49.2]} 13. exf6 {[%clk 0:02:51.5]} 13... Bxf6 {[%clk
0:02:49.5]} 14. Nb3 {[%clk 0:02:52.2]} 14... Be8 {[%clk 0:02:36.2]} 15. Rc1
{[%clk 0:02:50.8]} 15... Bh5 {[%clk 0:02:33]} 16. Nc5 {[%clk 0:02:50.3]} 16...
Rfe8 {[%clk 0:02:22.8]} 17. b5 {[%clk 0:02:09.1]} 17... Bxf3 {[%clk 0:02:15.3]}
18. bxc6 {[%clk 0:01:59.1]} 18... Bxe2 {[%clk 0:02:10.8]} 19. Qxe2 {[%clk
0:01:53.7]} 19... Qxc6 {[%clk 0:01:47.1]} 20. Ne4 {[%clk 0:01:53.4]} 20... Qd7
{[%clk 0:01:40.6]} 21. Nxf6+ {[%clk 0:01:51.2]} 21... gxf6 {[%clk 0:01:41.5]}
22. g4 {[%clk 0:01:48.9]} 22... Nd6 {[%clk 0:01:37.7]} 23. Qf3 {[%clk
0:01:45.9]} 23... Ne4 {[%clk 0:01:35.6]} 24. h4 {[%clk 0:01:45.9]} 24... Kh8
{[%clk 0:01:32.8]} 25. Kh1 {[%clk 0:01:46.2]} 25... Rac8 {[%clk 0:01:28.6]} 26.
Rxc8 {[%clk 0:01:45.2]} 26... Rxc8 {[%clk 0:01:28.3]} 27. Rg1 {[%clk 0:01:37.9]}
27... Rg8 {[%clk 0:01:28]} 28. g5 {[%clk 0:01:37.4]} 28... Qf7 {[%clk
0:01:20.4]} 29. Bf4 {[%clk 0:01:32.5]} 29... Qg6 {[%clk 0:01:05.7]} 30. Bh2
{[%clk 0:01:30.7]} 30... Qf5 {[%clk 0:00:47.4]} 31. Qxf5 {[%clk 0:01:30.9]}
31... exf5 {[%clk 0:00:48.3]} 32. f3 {[%clk 0:01:31.6]} 32... Nf2+ {[%clk
0:00:39.8]} 33. Kg2 {[%clk 0:01:30.8]} 33... Nd3 {[%clk 0:00:39]} 34. Rd1 {[%clk
0:01:28.1]} 34... Nb2 {[%clk 0:00:37.3]} 35. Rb1 {[%clk 0:01:28.1]} 35... Nc4
{[%clk 0:00:34.1]} 36. Rxb7 {[%clk 0:01:29]} 36... fxg5 {[%clk 0:00:33.1]} 37.
h5 {[%clk 0:01:29.4]} 37... f4 {[%clk 0:00:31.2]} 38. Rxa7 {[%clk 0:01:23.9]}
38... Re8 {[%clk 0:00:24.6]} 39. h6 {[%clk 0:01:21.9]} 39... Ne3+ {[%clk
0:00:24.2]} 40. Kh3 {[%clk 0:01:20.7]} 40... Nf5 {[%clk 0:00:19.1]} 41. Kg4
{[%clk 0:01:21.1]} 41... Nxh6+ {[%clk 0:00:14.2]} 42. Kxg5 {[%clk 0:01:21.8]}
42... Ng8 {[%clk 0:00:13.8]} 43. Bxf4 {[%clk 0:01:20.6]} 43... Ne7 {[%clk
0:00:14.2]} 44. Be5+ {[%clk 0:01:11.1]} 44... Kg8 {[%clk 0:00:14.8]} 45. Bf6
{[%clk 0:01:11.3]} 45... Ng6 {[%clk 0:00:14.8]} 46. Rg7+ {[%clk 0:01:11.1]}
46... Kf8 {[%clk 0:00:14.2]} 47. Rxh7 {[%clk 0:01:11.7]} 1-0

[Event "Early-Titled-Tuesday-Blitz-February-20-2024"]
[Site "Chess.com"]
[Date "2024.02.20"]
[Round "7"]
[White "hansen"]
[Black "Goryachkina"]
[Result "1-0"]
[WhiteElo "2912"]
[BlackElo "2705"]
[TimeControl "180+1"]
[EndTime "9:19:10 PST"]
[Termination "hansen won on time"]

1. e4 {[%clk 0:03:00.2]} 1... c5 {[%clk 0:02:59.6]} 2. Nf3 {[%clk 0:03:00.4]}
2... e6 {[%clk 0:02:59.6]} 3. Nc3 {[%clk 0:02:59.6]} 3... Nc6 {[%clk 0:02:57.7]}
4. Bb5 {[%clk 0:02:59.5]} 4... Nd4 {[%clk 0:02:52.5]} 5. Bd3 {[%clk 0:02:58.4]}
5... a6 {[%clk 0:02:45.1]} 6. O-O {[%clk 0:02:57.8]} 6... b5 {[%clk 0:02:41.6]}
7. Nxd4 {[%clk 0:02:57.6]} 7... cxd4 {[%clk 0:02:41.7]} 8. Ne2 {[%clk
0:02:58.5]} 8... Bc5 {[%clk 0:02:41]} 9. c3 {[%clk 0:02:58.4]} 9... dxc3 {[%clk
0:02:37.2]} 10. dxc3 {[%clk 0:02:49.4]} 10... Ne7 {[%clk 0:02:35.5]} 11. Nd4
{[%clk 0:02:45.9]} 11... Bb7 {[%clk 0:02:33.8]} 12. Qh5 {[%clk 0:02:45.1]} 12...
Bb6 {[%clk 0:02:16.2]} 13. Be3 {[%clk 0:02:38.9]} 13... Ng6 {[%clk 0:02:12.4]}
14. a4 {[%clk 0:02:38.1]} 14... O-O {[%clk 0:02:01.8]} 15. axb5 {[%clk
0:02:36.9]} 15... axb5 {[%clk 0:02:01.7]} 16. Qxb5 {[%clk 0:02:35.7]} 16... Bxd4
{[%clk 0:01:34.4]} 17. Bxd4 {[%clk 0:02:27.6]} 17... Bc6 {[%clk 0:01:34.2]} 18.
Qh5 {[%clk 0:02:21]} 18... f6 {[%clk 0:01:31.6]} 19. Qg4 {[%clk 0:02:12.1]}
19... e5 {[%clk 0:01:18.4]} 20. Bc5 {[%clk 0:02:07.2]} 20... Rxa1 {[%clk
0:00:38.3]} 21. Rxa1 {[%clk 0:02:05.7]} 21... d6 {[%clk 0:00:38.1]} 22. Qe6+
{[%clk 0:01:49.5]} 22... Kh8 {[%clk 0:00:37.9]} 23. Be3 {[%clk 0:01:49.8]} 23...
Re8 {[%clk 0:00:28.7]} 24. Qc4 {[%clk 0:01:50]} 24... Bb7 {[%clk 0:00:26.7]} 25.
Ra7 {[%clk 0:01:48.7]} 25... Bc8 {[%clk 0:00:22.3]} 26. Qc7 {[%clk 0:01:44.4]}
26... Qxc7 {[%clk 0:00:17.4]} 27. Rxc7 {[%clk 0:01:45.3]} 27... Be6 {[%clk
0:00:17.5]} 28. f3 {[%clk 0:01:15.5]} 28... Ra8 {[%clk 0:00:11.7]} 29. Ba7
{[%clk 0:01:05.2]} 29... Nf4 {[%clk 0:00:10.5]} 30. Bf1 {[%clk 0:01:05.6]} 30...
h5 {[%clk 0:00:09.2]} 31. h4 {[%clk 0:01:03.9]} 31... g5 {[%clk 0:00:08]} 32.
hxg5 {[%clk 0:00:58]} 32... fxg5 {[%clk 0:00:08.3]} 33. b4 {[%clk 0:00:58.7]}
33... g4 {[%clk 0:00:07.7]} 34. fxg4 {[%clk 0:00:57.5]} 34... Bxg4 {[%clk
0:00:07.8]} 35. b5 {[%clk 0:00:56.7]} 35... Ne2+ {[%clk 0:00:07.5]} 36. Bxe2
{[%clk 0:00:49.1]} 36... Bxe2 {[%clk 0:00:07.3]} 37. b6 {[%clk 0:00:49.7]} 1-0

[Event "Early-Titled-Tuesday-Blitz-February-20-2024"]
[Site "Chess.com"]
[Date "2024.02.20"]
[Round "7"]
[White "averageFM"]
[Black "alexrustemov"]
[Result "0-1"]
[WhiteElo "2621"]
[BlackElo "2895"]
[TimeControl "180+1"]
[EndTime "9:19:13 PST"]
[Termination "alexrustemov won by resignation"]

1. d4 {[%clk 0:03:00.9]} 1... g6 {[%clk 0:02:22.3]} 2. e4 {[%clk 0:02:59]} 2...
Bg7 {[%clk 0:02:22]} 3. Nf3 {[%clk 0:02:59.2]} 3... d6 {[%clk 0:02:21.5]} 4. Be2
{[%clk 0:02:59.1]} 4... Nf6 {[%clk 0:02:21]} 5. Nc3 {[%clk 0:02:59.2]} 5... O-O
{[%clk 0:02:21.1]} 6. O-O {[%clk 0:02:58.8]} 6... Bg4 {[%clk 0:01:58.3]} 7. h3
{[%clk 0:02:56.5]} 7... Bxf3 {[%clk 0:01:57.7]} 8. Bxf3 {[%clk 0:02:57.4]} 8...
Nc6 {[%clk 0:01:57.5]} 9. Ne2 {[%clk 0:02:57]} 9... Nd7 {[%clk 0:01:56.7]} 10.
g4 {[%clk 0:02:51.4]} 10... e5 {[%clk 0:01:53.5]} 11. d5 {[%clk 0:02:20.2]}
11... Ne7 {[%clk 0:01:52]} 12. Bg2 {[%clk 0:02:20.4]} 12... f5 {[%clk
0:01:51.6]} 13. Bg5 {[%clk 0:02:17.3]} 13... f4 {[%clk 0:01:45.8]} 14. f3 {[%clk
0:02:10.6]} 14... Bf6 {[%clk 0:01:45.4]} 15. Bxf6 {[%clk 0:02:07.5]} 15... Rxf6
{[%clk 0:01:46.3]} 16. c4 {[%clk 0:02:06.5]} 16... a5 {[%clk 0:01:45]} 17. Nc3
{[%clk 0:02:03.1]} 17... g5 {[%clk 0:01:44.8]} 18. a3 {[%clk 0:01:57.8]} 18...
h5 {[%clk 0:01:43.4]} 19. b4 {[%clk 0:01:54.9]} 19... b6 {[%clk 0:01:43.6]} 20.
Qd2 {[%clk 0:01:45.7]} 20... Rh6 {[%clk 0:01:43.3]} 21. Qf2 {[%clk 0:01:44]}
21... Kg7 {[%clk 0:01:43.2]} 22. Na4 {[%clk 0:01:39.4]} 22... hxg4 {[%clk
0:01:39.8]} 23. hxg4 {[%clk 0:01:29.1]} 23... Ng6 {[%clk 0:01:39.9]} 24. c5
{[%clk 0:01:26.3]} 24... axb4 {[%clk 0:01:26.4]} 25. axb4 {[%clk 0:01:24.2]}
25... bxc5 {[%clk 0:01:26.4]} 26. bxc5 {[%clk 0:01:22.8]} 26... Nf6 {[%clk
0:01:24.3]} 27. cxd6 {[%clk 0:01:21.2]} 27... cxd6 {[%clk 0:01:24.3]} 28. Nb6
{[%clk 0:01:20.9]} 28... Rxa1 {[%clk 0:01:18]} 29. Rxa1 {[%clk 0:01:21.8]} 29...
Rh7 {[%clk 0:01:13]} 30. Ra8 {[%clk 0:01:10.4]} 30... Qc7 {[%clk 0:01:12.8]} 31.
Rc8 {[%clk 0:01:03]} 31... Qb7 {[%clk 0:01:11.6]} 32. Rc6 {[%clk 0:00:56.4]}
32... Ne8 {[%clk 0:01:08.2]} 33. Qc2 {[%clk 0:00:44.9]} 33... Kh6 {[%clk
0:01:06.9]} 34. Nc4 {[%clk 0:00:39.5]} 34... Rd7 {[%clk 0:01:02.5]} 35. Bf1
{[%clk 0:00:34.9]} 35... Nh4 {[%clk 0:01:01.3]} 36. Be2 {[%clk 0:00:32.1]} 36...
Qb4 {[%clk 0:01:00.7]} 37. Kf2 {[%clk 0:00:22.3]} 37... Ra7 {[%clk 0:00:59.9]}
38. Nxe5 {[%clk 0:00:21.2]} 38... Qd4+ {[%clk 0:00:54.3]} 39. Ke1 {[%clk
0:00:20.8]} 39... Ra1+ {[%clk 0:00:51.9]} 40. Bd1 {[%clk 0:00:20.8]} 40... Ng2+
{[%clk 0:00:44.6]} 41. Kf1 {[%clk 0:00:19.6]} 41... Ne3+ {[%clk 0:00:44.3]} 0-1

[Event "Early-Titled-Tuesday-Blitz-February-20-2024"]
[Site "Chess.com"]
[Date "2024.02.20"]
[Round "7"]
[White "Oleksandr_Bortnyk"]
[Black "Elsa167"]
[Result "1-0"]
[WhiteElo "3070"]
[BlackElo "2894"]
[TimeControl "180+1"]
[EndTime "9:19:14 PST"]
[Termination "Oleksandr_Bortnyk won by resignation"]

1. e4 {[%clk 0:03:00.9]} 1... c6 {[%clk 0:02:56]} 2. c4 {[%clk 0:03:00.9]} 2...
d6 {[%clk 0:02:52.1]} 3. d4 {[%clk 0:02:50]} 3... g6 {[%clk 0:02:52.6]} 4. Nc3
{[%clk 0:02:44]} 4... Bg7 {[%clk 0:02:52.8]} 5. g3 {[%clk 0:02:40.8]} 5... e5
{[%clk 0:02:47.8]} 6. Be3 {[%clk 0:02:39.9]} 6... Nf6 {[%clk 0:02:43.5]} 7. h3
{[%clk 0:02:33.8]} 7... exd4 {[%clk 0:02:30.7]} 8. Bxd4 {[%clk 0:02:31]} 8...
O-O {[%clk 0:02:31]} 9. Bg2 {[%clk 0:02:31.5]} 9... Be6 {[%clk 0:02:17.9]} 10.
b3 {[%clk 0:02:27.9]} 10... c5 {[%clk 0:01:28.8]} 11. Be3 {[%clk 0:02:25.5]}
11... Ng4 {[%clk 0:01:28.6]} 12. Bd2 {[%clk 0:02:09.5]} 12... Ne5 {[%clk
0:01:26.6]} 13. Qb1 {[%clk 0:01:47.7]} 13... Nec6 {[%clk 0:01:23.5]} 14. Nge2
{[%clk 0:01:45]} 14... Nd4 {[%clk 0:01:23.6]} 15. Nxd4 {[%clk 0:01:23.9]} 15...
cxd4 {[%clk 0:01:20.1]} 16. Ne2 {[%clk 0:01:17.6]} 16... Nc6 {[%clk 0:01:20]}
17. O-O {[%clk 0:01:17.3]} 17... a6 {[%clk 0:01:13.3]} 18. f4 {[%clk 0:01:10.5]}
18... f5 {[%clk 0:01:05.8]} 19. Kh2 {[%clk 0:01:09.1]} 19... Qd7 {[%clk
0:01:00.7]} 20. Ng1 {[%clk 0:01:03.1]} 20... fxe4 {[%clk 0:00:52.4]} 21. Qxe4
{[%clk 0:01:04]} 21... Rae8 {[%clk 0:00:50.9]} 22. Qf3 {[%clk 0:01:02.3]} 22...
g5 {[%clk 0:00:37.2]} 23. Qh5 {[%clk 0:00:58.2]} 23... g4 {[%clk 0:00:32.3]} 24.
Rae1 {[%clk 0:00:53.8]} 24... Bf5 {[%clk 0:00:24.5]} 25. hxg4 {[%clk 0:00:32.2]}
25... Bxg4 {[%clk 0:00:24.4]} 26. Qh4 {[%clk 0:00:29.4]} 26... Bf6 {[%clk
0:00:19.3]} 27. Qh6 {[%clk 0:00:29.5]} 27... Bg7 {[%clk 0:00:18.2]} 28. Bd5+
{[%clk 0:00:29.6]} 28... Kh8 {[%clk 0:00:18.3]} 29. Qh4 {[%clk 0:00:29.7]} 29...
Bf6 {[%clk 0:00:08.6]} 30. Rxe8 {[%clk 0:00:27.5]} 30... Bxh4 {[%clk 0:00:06.7]}
31. Rxf8+ {[%clk 0:00:27.7]} 31... Kg7 {[%clk 0:00:07.2]} 32. Rf7+ {[%clk
0:00:25.3]} 32... Qxf7 {[%clk 0:00:07.5]} 33. Bxf7 {[%clk 0:00:26.2]} 1-0